[Event "USA-ch Women 2024"]
[Site "Saint Louis"]
[Date "2024.10.16"]
[Round "5.6"]
[White "Atwell, Rose"]
[Black "Yu, Jennifer"]
[Result "0-1"]
[ECO "E11"]
[WhiteElo "2185"]
[BlackElo "2267"]
[Annotator "RC"]
[PlyCount "158"]
[EventDate "2024.10.09"]
[EventType "tourn"]
[EventCountry "USA"]
[SourceTitle "playchess.com"]
[Source "ChessBase"]
[SourceQuality "1"]
[TimeControl "40/5400+30:1800+30"]

1. d4 {[%emt 0:00:01]} Nf6 {[%emt 0:01:23]} 2. c4 {[%emt 0:00:07]} e6 {[%emt 0:00:27]} 3. g3 {[%emt 0:00:06]} d5 {[%emt 0:01:43]} 4. Bg2 {[%emt 0:00:09]} Bb4+ {[%emt 0:01:38]} 5. Bd2 {[%emt 0:00:13]} Be7 {[%emt 0:00:18]} 6. Nf3 {[%emt 0:01:19]} O-O {[%emt 0:03:29]} 7. O-O {[%emt 0:00:07]} c6 {[%emt 0:00:21]} 8. Qc2 {[%emt 0:00:22]} Ne4 {[%emt 0:00:54]} 9. Rd1 {[%emt 0:03:50]} Nd7 {[%emt 0:02:06]} 10. b3 {[%emt 0:04:38]} b6 {[%emt 0:05:53]} 11. Bf4 {[%emt 0:12:06]} Bb7 {[%emt 0:03:08]} 12. h4 {[%emt 0:02:38]} c5 {[%emt 0:17:36]} 13. cxd5 {[%emt 0:05:09]} exd5 {[%emt 0:00:16]} 14. Nbd2 {[%emt 0:05:55]} Rc8 {[%emt 0:04:55]} 15. Nxe4 {[%emt 0:11:14]} dxe4 {[%emt 0:01:35]} 16. Ng5 {[%emt 0:04:14]} cxd4 {[%emt 0:00:11]} 17. Qd2 {[%emt 0:00:46]} Nf6 {[%emt 0:14:31]} 18. Be5 {[%emt 0:08:37]} e3 {[%emt 0:09:11]} 19. fxe3 {[%emt 0:02:46]} Bxg2 {[%emt 0:00:21]} 20. Kxg2 {[%emt 0:00:17]} dxe3 {[%emt 0:13:14]} 21. Qxe3 {[%emt 0:00:10]} Qe8 {[%emt 0:00:15]} 22. Qd3 {[%emt 0:04:13]} Qc6+ {[%emt 0:02:30]} 23. Kh3 {[%emt 0:00:58]} Rfd8 {[%emt 0:02:04]} 24. Qf5 {[%emt 0:03:07]} h6 {[%emt 0:02:55]} 25. Rac1 {[%emt 0:10:41]} Qxc1 {[%emt 0:00:56]} 26. Rxc1 {[%emt 0:00:37]} Rxc1 {[%emt 0:00:09]} 27. Bxf6 {[%emt 0:00:49]} Bxf6 {[%emt 0:00:12]} 28. Qh7+ {[%emt 0:01:21]} Kf8 {[%emt 0:00:05]} 29. Ne4 {[%emt 0:00:11]} Bd4 {[%emt 0:02:01]} 30. Qf5 {[%emt 0:02:05]} Rc6 {[%emt 0:00:55]} 31. h5 {[%emt 0:03:10]} Re6 {[%emt 0:01:09]} 32. Qf4 {[%emt 0:00:09]} Be5 {[%emt 0:02:33]} 33. Qf3 {[%emt 0:01:01]} Bb8 {[%emt 0:01:00]} 34. Nc3 {[%emt 0:00:40]} Re5 {[%emt 0:02:24]} 35. e4 {[%emt 0:01:12]} Rg5 {[%emt 0:00:03]} 36. Ne2 {[%emt 0:01:27]} Kg8 {[%emt 0:02:05]} 37. Nf4 {[%emt 0:03:24]} Be5 {[%emt 0:01:09]} 38. g4 {[%emt 0:01:59]} Bxf4 {[%emt 0:00:53]} 39. Qxf4 {[%emt 0:00:02]} Rd3+ {[%emt 0:00:04]} 40. Kh4 {[%emt 0:02:13]} Rc5 {[%emt 0:01:15]} 41. Qb8+ {[%emt 0:34:54]} Kh7 {[%emt 0:30:13]} 42. Qxa7 {[%emt 0:00:19]} Rcc3 {[%emt 0:00:00]} 43. g5 {[%emt 0:00:00]} Rh3+ {[%emt 0:00:00]} 44. Kg4 {[%emt 0:00:00]} Rhg3+ {[%emt 0:00:00]} 45. Kf4 {[%emt 0:00:00]} Rcf3+ {[%emt 0:00:00]} 46. Ke5 {[%emt 0:00:00]} Rxg5+ {[%emt 0:00:00]} 47. Kd4 {[%emt 0:00:00]} b5 {[%emt 0:00:00]} 48. a4 {[%emt 0:00:00]} bxa4 {[%emt 0:00:00]} 49. bxa4 {[%emt 0:00:00]} Rxh5 {[%emt 0:00:00]} 50. a5 {[%emt 0:00:00]} Ra3 {[%emt 0:00:00]} 51. a6 {[%emt 0:00:00]} f6 {[%emt 0:00:00]} 52. Qb7 {[%emt 0:00:00]} Rha5 {[%emt 0:00:00]} 53. Qc8 {[%emt 0:00:00]} h5 {[%emt 0:00:00]} 54. Qe8 {[%emt 0:00:00]} Kh6 {[%emt 0:01:03]} 55. Qh8+ {[%emt 0:02:56]} Kg6 {[%emt 0:00:04]} 56. Qe8+ {[%emt 0:00:31]} Kg5 {[%emt 0:00:09]} 57. Qd7 {[%emt 0:02:57]} Kh6 {[%emt 0:01:13]} 58. Qe8 {[%emt 0:02:45]} Rxa6 {[%emt 0:00:17]} 59. Qh8+ {[%emt 0:00:38]} Kg6 {[%emt 0:00:02]} 60. Qe8+ {[%emt 0:00:22]} Kg5 {[%emt 0:00:08]} 61. Qg8 {[%emt 0:00:41]} Ra7 {[%emt 0:01:45]} 62. e5 {[%emt 0:00:23]} fxe5+ {[%emt 0:02:00]} 63. Kxe5 {[%emt 0:00:06]} Re3+ {[%emt 0:01:47]} 64. Kd4 {[%emt 0:00:49]} Rae7 {[%emt 0:00:28]} 65. Qd5+ {[%emt 0:00:25]} Kh6 {[%emt 0:00:07]} 66. Qd6+ {[%emt 0:00:52]} Kh7 {[%emt 0:00:08]} 67. Qh2 {[%emt 0:00:14]} g6 {[%emt 0:01:11]} 68. Kd5 {[%emt 0:00:43]} Rd3+ {[%emt 0:00:19]} 69. Kc4 {[%emt 0:00:20]} Red7 {[%emt 0:00:13]} 70. Kb4 {[%emt 0:00:47]} Rd2 {[%emt 0:01:10]} 71. Qg3 {[%emt 0:00:23]} Rc2 {[%emt 0:00:18]} 72. Kb3 {[%emt 0:00:32]} Rc6 {[%emt 0:00:53]} 73. Qb8 {[%emt 0:00:19]} Rdc7 {[%emt 0:01:26]} 74. Qb4 {[%emt 0:00:45]} Rc3+ {[%emt 0:00:10]} 75. Kb2 {[%emt 0:00:17]} Rc2+ {[%emt 0:00:06]} 76. Kb1 {[%emt 0:00:06]} Rc1+ {[%emt 0:00:08]} 77. Ka2 {[%emt 0:00:37]} R7c2+ {[%emt 0:00:09]} 78. Ka3 {[%emt 0:00:14]} Ra1+ {[%emt 0:00:06]} 79. Kb3 {[%emt 0:00:02]} Rb1+ {[%emt 0:00:06]} 0-1